fUST/lending_fUST_20250901
["ID","MTS","AMOUNT","RATE_DAILY","PERIOD"]
[382536596,1756659065736,-480.0,0.0001862,2]
[382536597,1756659065745,-510.6,0.0001862,2]
[382536598,1756659065755,-1160.87,0.0001862,2]
[382536599,1756659065765,-728.63,0.0001862,2]
[382536600,1756659065775,-480.0,0.0001862,2]
[382536601,1756659065786,-703.71,0.0001862,2]
[382536602,1756659065796,-1192.27,0.0001862,2]
[382536603,1756659065806,-2321.06,0.0001862,2]
[382536604,1756659065816,-601.2,0.0001862,2]
[382536605,1756659065826,-1549.31,0.0001862,2]
[382536606,1756659065835,-480.0,0.0001862,2]
[382536607,1756659065845,-1422.9,0.0001862,2]
[382536608,1756659065857,-480.0,0.0001862,2]
[382536609,1756659065866,-656.06,0.0001862,2]
[382536610,1756659065875,-525.66,0.0001862,2]
[382536611,1756659065886,-480.0,0.0001862,2]
[382536612,1756659065897,-751.19,0.0001862,2]
[382536613,1756659065907,-480.0,0.0001862,2]
[382536614,1756659065917,-1172.56,0.0001862,2]
[382536615,1756659065929,-6095.61,0.0001862,2]
[382536616,1756659065939,-484.23,0.0001862,2]
[382536617,1756659065949,-480.0,0.0001862,2]
[382536618,1756659065958,-908.82,0.0001862,2]
[382536619,1756659065969,-1298.95,0.0001862,2]
[382536620,1756659065979,-532.97,0.0001862,2]
[382536621,1756659065988,-647.55,0.0001862,2]
[382536622,1756659065998,-1627.56,0.0001862,2]
[382536623,1756659066007,-902.2,0.0001862,2]
[382536624,1756659066018,-480.0,0.0001862,2]
[382536625,1756659066029,-2903.5,0.0001862,2]
[382536626,1756659066038,-504.59,0.0001862,2]
[382536627,1756659066049,-637.96,0.0001862,2]
[382536628,1756659066059,-480.0,0.0001862,2]
[382536629,1756659066068,-1434.82,0.0001862,2]
[382536630,1756659066078,-480.0,0.0001862,2]
[382536631,1756659066087,-1106.49,0.0001862,2]
[382536632,1756659066096,-863.64,0.0001862,2]
[382536633,1756659066106,-480.0,0.0001862,2]
[382536634,1756659066115,-480.0,0.0001862,2]
[382536635,1756659066125,-1237.46,0.0001862,2]
[382536636,1756659066134,-669.06,0.0001862,2]
[382536637,1756659066144,-833.88,0.0001862,2]
[382536638,1756659066153,-480.0,0.0001862,2]
[382536639,1756659066162,-899.37,0.0001862,2]
[382536640,1756659066171,-571.25,0.0001862,2]
[382536641,1756659066181,-1000.0,0.00018621,2]
[382536642,1756659066191,-1000.0,0.00018621,2]
[382536643,1756659066200,-1000.0,0.00018621,2]
[382536644,1756659066210,-1000.0,0.00018621,2]
[382536645,1756659066220,-1000.0,0.00018621,2]
[382536646,1756659066229,-1000.0,0.00018621,2]
[382536647,1756659066239,-1000.0,0.00018621,2]
[382536648,1756659066251,-1000.0,0.00018621,2]
[382536649,1756659066260,-1000.0,0.00018621,2]
[382536650,1756659066270,-1000.0,0.00018621,2]
[382536651,1756659066279,-1000.0,0.00018621,2]
[382536652,1756659066289,-1000.0,0.00018621,2]
[382536653,1756659066303,-1000.0,0.00018621,2]
[382536654,1756659066312,-1000.0,0.00018621,2]
[382536655,1756659066322,-1000.0,0.00018621,2]
[382536656,1756659066333,-1000.0,0.00018621,2]
[382536657,1756659066342,-1000.0,0.00018621,2]
[382536658,1756659066352,-1000.0,0.00018621,2]
[382536659,1756659066362,-1000.0,0.00018621,2]
[382536660,1756659066371,-1000.0,0.00018621,2]
[382536661,1756659066381,-500.0,0.00018621,2]
[382536662,1756659066390,-480.0,0.00018621,2]
[382536663,1756659066399,-255.31608807,0.00018621,2]
[382536664,1756659066409,-480.0,0.00018621,2]
[382536665,1756659066418,-959.39,0.00018621,2]
[382536666,1756659066428,-222.837283,0.00018621,2]
[382536667,1756659066438,-151.0,0.00018621,2]
[382536668,1756659066453,-480.0,0.00018621,2]
[382536669,1756659066462,-480.0,0.00018621,2]
[382536670,1756659066472,-480.0,0.00018621,2]
[382536671,1756659066482,-480.0,0.00018621,2]
[382536672,1756659066491,-335.03468813,0.00018621,2]
[382536673,1756659066503,-480.0,0.00018621,2]
[382536674,1756659066512,-480.0,0.00018621,2]
[382536675,1756659066521,-480.0,0.00018621,2]
[382536676,1756659066531,-491.53,0.00018621,2]
[382536677,1756659066540,-480.0,0.00018621,2]
[382536678,1756659066549,-480.0,0.00018621,2]
[382536679,1756659066558,-480.0,0.00018621,2]
[382536680,1756659066567,-525.84,0.00018621,2]
[382536681,1756659066577,-480.0,0.00018621,2]
[382536682,1756659066586,-480.0,0.00018621,2]
[382536683,1756659066596,-480.0,0.00018621,2]
[382536684,1756659066605,-702.91,0.00018621,2]
[382536685,1756659066615,-482.76,0.00018621,2]
[382536686,1756659066624,-279.98960685,0.00018621,2]
[382536687,1756659066634,-480.0,0.00018621,2]
[382536688,1756659066643,-480.0,0.00018621,2]
[382536689,1756659066652,-548.49,0.00018621,2]
[382536690,1756659066662,-591.87,0.00018621,2]
[382536691,1756659066671,-742.83,0.00018621,2]
[382536692,1756659066680,-480.0,0.00018621,2]
[382536693,1756659066691,-480.0,0.00018621,2]
[382536694,1756659066701,-554.89,0.00018621,2]
[382536695,1756659066712,-480.0,0.00018621,2]
[382536696,1756659066722,-480.0,0.00018621,2]
[382536697,1756659066732,-1349.91,0.00018621,2]
[382536698,1756659066741,-480.0,0.00018621,2]
[382536699,1756659066751,-480.0,0.00018621,2]
[382536700,1756659066760,-480.0,0.00018621,2]
[382536701,1756659066770,-480.0,0.00018621,2]
[382536702,1756659066780,-1120.3,0.00018621,2]
[382536703,1756659066790,-529.75,0.00018621,2]
[382536704,1756659066800,-284.048892,0.00018621,2]
[382536705,1756659066809,-933.06,0.00018621,2]
[382536706,1756659066818,-480.0,0.00018621,2]
[382536707,1756659066827,-480.0,0.00018621,2]
[382536708,1756659066835,-583.31,0.00018621,2]
[382536709,1756659066845,-480.0,0.00018621,2]
[382536710,1756659066853,-480.0,0.00018621,2]
[382536711,1756659066863,-480.0,0.00018621,2]
[382536712,1756659066873,-494.29,0.00018621,2]
[382536713,1756659066884,-480.0,0.00018621,2]
[382536714,1756659066894,-1120.54,0.00018621,2]
[382536715,1756659066904,-817.85,0.00018621,2]
[382536716,1756659066913,-500.0,0.00018621,2]
[382536717,1756659066923,-1474.41,0.00018621,2]
[382536718,1756659066932,-381.05063748,0.00018621,2]
[382536719,1756659066942,-969.31,0.00018621,2]
[382536720,1756659066951,-151.0,0.00018621,2]
[382536721,1756659066960,-151.0,0.00018621,2]
[382536722,1756659066970,-480.0,0.00018621,2]
[382536723,1756659066979,-480.0,0.00018621,2]
[382536724,1756659066988,-1100.39,0.00018621,2]
[382536725,1756659066997,-480.0,0.00018621,2]
[382536726,1756659067007,-1287.82,0.00018621,2]
[382536727,1756659067016,-480.0,0.00018621,2]
[382536728,1756659067026,-480.0,0.00018621,2]
[382536729,1756659067035,-480.0,0.00018621,2]
[382536730,1756659067045,-333.83539052,0.00018621,2]
[382536731,1756659067054,-480.0,0.00018621,2]
[382536732,1756659067066,-480.0,0.00018621,2]
[382536733,1756659067075,-480.0,0.00018621,2]
[382536734,1756659067084,-480.0,0.00018621,2]
[382536735,1756659067094,-1415.49,0.00018621,2]
[382536736,1756659067103,-151.0,0.00018621,2]
[382536737,1756659067113,-480.0,0.00018621,2]
[382536738,1756659067122,-512.52,0.00018621,2]
[382536739,1756659067133,-480.0,0.00018621,2]
[382536740,1756659067143,-480.0,0.00018621,2]
[382536741,1756659067153,-480.0,0.00018621,2]
[382536742,1756659067162,-480.0,0.00018621,2]
[382536743,1756659067172,-480.0,0.00018621,2]
[382536744,1756659067181,-686.57,0.00018621,2]
[382536745,1756659067191,-659.82,0.00018621,2]
[382536746,1756659067200,-151.0,0.00018621,2]
[382536747,1756659067210,-890.58,0.00018621,2]
[382536748,1756659067220,-663.59,0.00018621,2]
[382536749,1756659067229,-151.0,0.00018621,2]
[382536750,1756659067238,-151.0,0.00018621,2]
[382536751,1756659067248,-585.21,0.00018621,2]
[382536752,1756659067258,-1419.66,0.00018621,2]
[382536753,1756659067267,-480.0,0.00018621,2]
[382536754,1756659067276,-480.0,0.00018621,2]
[382536755,1756659067286,-480.0,0.00018621,2]
[382536756,1756659067295,-594.61,0.00018621,2]
[382536757,1756659067305,-1015.26,0.00018621,2]
[382536758,1756659067314,-480.0,0.00018621,2]
[382536759,1756659067323,-480.0,0.00018621,2]
[382536760,1756659067333,-1319.99,0.00018621,2]
[382536761,1756659067343,-495.26,0.00018621,2]
[382536762,1756659067353,-625.70560215,0.00018621,2]
[382536763,1756659067362,-104.18587466,0.00018621,2]
[382536764,1756659068356,480.0,0.0001725,2]
[382536765,1756659068535,480.0,0.0001725,2]
[382536766,1756659068913,480.0,0.0001725,2]
[382536767,1756659075797,295.51,0.0001725,2]
[382536768,1756659075824,184.49,0.0001725,2]
[382536769,1756659075887,480.0,0.0001725,2]
[382536770,1756659076552,9335.52,0.00016684,2]
[382536771,1756659076728,664.48,0.00016684,2]
[382536772,1756659077367,5000.0,0.0001725,2]
[382536773,1756659077500,480.0,0.0001725,2]
[382536774,1756659077864,480.0,0.0001725,2]
[382536775,1756659078931,300.0,0.00017249,2]
[382536776,1756659079820,496.95,0.0001725,2]
[382536777,1756659080741,480.0,0.0001725,2]
[382536778,1756659081008,480.0,0.0001725,2]
[382536779,1756659081039,480.0,0.0001725,2]
[382536780,1756659081410,480.0,0.0001725,2]
[382536781,1756659081672,480.0,0.0001725,2]
[382536782,1756659082114,480.0,0.0001725,2]
[382536783,1756659082185,5000.0,0.0001725,2]
[382536784,1756659082524,480.0,0.0001725,2]
[382536785,1756659082560,480.0,0.0001725,2]
[382536786,1756659083478,480.0,0.0001725,2]
[382536787,1756659083926,480.0,0.0001725,2]
[382536788,1756659084851,480.0,0.0001725,2]
[382536789,1756659085440,1070.95,0.0001725,2]
[382536790,1756659086360,480.0,0.0001725,2]
[382536791,1756659088040,89.06,0.0001725,2]
[382536792,1756659088062,390.94,0.0001725,2]
[382536793,1756659089881,480.0,0.0001725,2]
[382536794,1756659093690,806.88,0.0001725,2]
[382536795,1756659094465,480.0,0.0001725,2]
[382536796,1756659095749,971.02,0.0001725,2]
[382536797,1756659096362,480.0,0.0001725,2]
[382536798,1756659098013,480.0,0.0001725,2]
[382536799,1756659101497,480.0,0.0001725,2]
[382536800,1756659101961,798.09,0.0001725,2]
[382536801,1756659103890,5000.0,0.0001725,2]
[382536802,1756659104162,481.22,0.0001725,2]
[382536803,1756659104984,22.8,0.0001725,2]
[382536804,1756659105006,457.2,0.0001725,2]
[382536805,1756659108408,4845.43,0.0001725,2]
[382536806,1756659109232,553.7180971,0.00016699,2]
[382536807,1756659115074,1105.81,0.0001725,2]
[382536808,1756659118624,1740.8,0.0001725,2]
[382536809,1756659120899,480.0,0.0001725,2]
[382536810,1756659122115,817.0519029,0.0001725,2]
[382536811,1756659122138,344.9280971,0.0001725,2]
[382536812,1756659123146,300.0,0.0001725,2]
[382536813,1756659124588,743.9,0.0001725,2]
[382536814,1756659126418,5000.0,0.0001725,2]
[382536815,1756659130119,806.6,0.0001725,2]
[382536816,1756659131451,480.0,0.0001725,2]
[382536817,1756659131552,2324.5819029,0.0001725,2]
[382536818,1756659131575,2247.1280971,0.0001725,2]
[382536819,1756659132567,1672.77,0.0001725,2]
[382536820,1756659135955,917.52,0.0001725,2]
[382536821,1756659136355,480.0,0.0001725,2]
[382536822,1756659138705,1019.52,0.0001725,2]
[382536823,1756659139784,776.66,0.0001725,2]
[382536824,1756659144454,2177.62,0.0001725,2]
[382536825,1756659145580,480.0,0.0001725,2]
[382536826,1756659145968,228.7919029,0.0001725,2]
[382536827,1756659145991,251.2080971,0.0001725,2]
[382536828,1756659146267,947.51,0.0001725,2]
[382536829,1756659149405,5000.0,0.0001725,2]
[382536830,1756659150057,847.46,0.0001725,2]
[382536831,1756659150300,2953.8319029,0.00017151,2]
[382536832,1756659150323,10000.01,0.00017151,2]
[382536833,1756659150345,10000.01,0.00017151,2]
[382536834,1756659150368,10000.01,0.00017151,2]
[382536835,1756659150392,10000.01,0.00017151,2]
[382536836,1756659150415,10000.01,0.00017151,2]
[382536837,1756659150437,10000.01,0.00017151,2]
[382536838,1756659150460,10000.01,0.00017151,2]
[382536839,1756659150481,10000.01,0.00017151,2]
[382536840,1756659150506,10000.01,0.00017151,2]
[382536841,1756659150536,318.76299983,0.00017151,2]
[382536842,1756659152360,485.67,0.0001725,2]
[382536843,1756659152552,480.0,0.0001725,2]
[382536844,1756659152696,500.0,0.0001715,2]
[382536845,1756659152749,500.0,0.0001715,2]
[382536846,1756659152791,428.11725264,0.0001715,2]
[382536847,1756659152829,500.0,0.0001715,2]
[382536848,1756659152886,454.67860742,0.0001715,2]
[382536849,1756659153287,480.0,0.0001725,2]
[382536850,1756659154051,565.60466085,0.0001725,2]
[382536851,1756659154322,480.0,0.0001725,2]
[382536852,1756659154741,749.49,0.0001725,2]
[382536853,1756659157584,870.65,0.0001725,2]
[382536854,1756659158116,492.05,0.0001725,2]
[382536855,1756659158480,480.0,0.0001725,2]
[382536856,1756659158537,599.91412644,0.00017151,2]
[382536857,1756659159889,480.0,0.0001725,2]
[382536858,1756659161883,435.60249108,0.0001725,2]
[382536859,1756659164753,480.0,0.0001725,2]
[382536860,1756659169160,681.62,0.0001725,2]
[382536861,1756659170720,647.73,0.0001725,2]
[382536862,1756659171068,563.4,0.0001725,2]
[382536863,1756659172743,4269.04338248,0.0001725,2]
[382536864,1756659172766,730.95661752,0.0001725,2]
[382536865,1756659174419,480.0,0.0001725,2]
[382536866,1756659174481,480.0,0.0001725,2]
[382536867,1756659176259,480.0,0.0001725,2]
[382536868,1756659178764,974.21,0.0001725,2]
[382536869,1756659180774,1127.84,0.0001725,2]
[382536870,1756659180802,480.0,0.0001725,2]
[382536871,1756659181033,480.0,0.0001725,2]
[382536872,1756659182293,501.79,0.0001725,2]
[382536873,1756659182336,155.47799131,0.00016878,2]
[382536874,1756659182596,300.0,0.0001725,2]
[382536875,1756659184257,480.0,0.0001725,2]
[382536876,1756659185332,480.0,0.0001725,2]
[382536877,1756659186543,480.0,0.0001725,2]
[382536878,1756659189323,480.0,0.0001725,2]
[382536879,1756659191576,674.53,0.0001725,2]
[382536880,1756659191761,820.57,0.0001725,2]
[382536881,1756659193436,394.63539117,0.0001725,2]
[382536882,1756659193458,85.36460883,0.0001725,2]
[382536883,1756659194260,480.0,0.0001725,2]
[382536884,1756659194604,879.42,0.0001725,2]
[382536885,1756659194740,1135.9,0.0001725,2]
[382536886,1756659195130,7419.32539117,0.0001725,2]
[382536887,1756659195153,10000.01,0.0001725,2]
[382536888,1756659195176,10000.01,0.0001725,2]
[382536889,1756659195198,10000.01,0.0001725,2]
[382536890,1756659195220,10000.01,0.0001725,2]
[382536891,1756659195241,6217.3121195,0.0001725,2]
[382536892,1756659195349,3782.6978805,0.0001725,2]
[382536893,1756659195371,1217.3021195,0.0001725,2]
[382536894,1756659195503,480.0,0.0001725,2]
[382536895,1756659197141,894.2,0.0001725,2]
[382536896,1756659199578,526.22,0.0001725,2]
[382536897,1756659199622,480.0,0.0001725,2]
[382536898,1756659200621,219.29313201,0.00017151,2]
[382536899,1756659201305,480.0,0.0001725,2]
[382536900,1756659202426,480.0,0.0001725,2]
[382536901,1756659203211,5000.0,0.0001725,2]
[382536902,1756659207614,222.99474849,0.0001725,2]
[382536903,1756659207637,257.00525151,0.0001725,2]
[382536904,1756659207856,480.0,0.0001725,2]
[382536905,1756659207889,549.85,0.0001725,2]
[382536906,1756659208106,183.82996849,0.0001725,2]
[382536907,1756659211863,5000.0,0.0001725,2]
[382536908,1756659214849,1126.46,0.0001725,2]
[382536909,1756659215063,543.69,0.0001725,2]
[382536910,1756659215811,480.0,0.0001725,2]
[382536911,1756659217574,480.0,0.0001725,2]
[382536912,1756659217772,480.0,0.0001725,2]
[382536913,1756659218654,419.17478,0.0001725,2]
[382536914,1756659218677,140.78522,0.0001725,2]
[382536915,1756659219740,5000.0,0.0001725,2]
[382536916,1756659221894,875.97,0.0001725,2]
[382536917,1756659222496,335.03468813,0.0001725,2]
[382536918,1756659223540,638.0,0.00016941,2]
[382536919,1756659224703,480.0,0.0001725,2]
[382536920,1756659228352,2530.22009187,0.0001725,2]
[382536921,1756659228374,2469.77990813,0.0001725,2]
[382536922,1756659228427,480.0,0.0001725,2]
[382536923,1756659229378,638.0,0.00017011,2]
[382536924,1756659229915,979.66,0.0001725,2]
[382536925,1756659231140,1944.66,0.0001725,2]
[382536926,1756659231782,480.0,0.0001725,2]
[382536927,1756659233111,495.51,0.0001725,2]
[382536928,1756659234337,167.40560725,0.00017151,2]
[382536929,1756659234896,638.0,0.00017233,2]
[382536930,1756659235074,480.0,0.0001725,2]
[382536931,1756659236706,480.0,0.0001725,2]
[382536932,1756659237011,746.99448462,0.0001725,2]
[382536933,1756659237033,2450.05551538,0.0001725,2]
[382536934,1756659239873,480.0,0.0001725,2]
[382536935,1756659240009,1971.6353823,0.00016518,2]
[382536936,1756659241407,599.98,0.0001725,2]
[382536937,1756659243091,492.17,0.0001725,2]
[382536938,1756659243471,480.0,0.0001725,2]
[382536939,1756659243518,1000.0,0.0001725,2]
[382536940,1756659243576,300.0,0.0001725,2]
[382536941,1756659243659,279.98960685,0.0001725,2]
[382536942,1756659243816,1946.17949547,0.0001725,2]
[382536943,1756659243840,3053.82050453,0.0001725,2]
[382536944,1756659247320,480.0,0.0001725,2]
[382536945,1756659251860,5000.0,0.0001725,2]
[382536946,1756659254396,1466.18949547,0.00016441,2]
[382536947,1756659254418,1348.45354053,0.00016441,2]
[382536948,1756659255611,480.0,0.0001725,2]
[382536949,1756659255891,953.96,0.0001725,2]
[382536950,1756659256562,480.0,0.0001725,2]
[382536951,1756659260617,480.0,0.0001725,2]
[382536952,1756659261311,480.0,0.0001725,2]
[382536953,1756659261813,544.75,0.0001725,2]
[382536954,1756659263871,480.0,0.0001725,2]
[382536955,1756659264750,3486.07,0.0001725,2]
[382536956,1756659264779,480.0,0.0001725,2]
[382536957,1756659266847,480.0,0.0001725,2]
[382536958,1756659267572,306.77645947,0.0001725,2]
[382536959,1756659267595,4693.22354053,0.0001725,2]
[382536960,1756659268551,1263.02,0.0001725,2]
[382536961,1756659269486,714.13,0.0001725,2]
[382536962,1756659270039,3329.63645947,0.0001725,2]
[382536963,1756659270068,2446.45354053,0.0001725,2]
[382536964,1756659270138,7553.55645947,0.0001725,2]
[382536965,1756659270159,10000.01,0.0001725,2]
[382536966,1756659270180,10000.01,0.0001725,2]
[382536967,1756659270200,10000.01,0.0001725,2]
[382536968,1756659270221,2446.41354053,0.0001725,2]
[382536969,1756659274713,581.16,0.0001725,2]
[382536970,1756659276203,723.14,0.0001725,2]
[382536971,1756659276325,937.14,0.0001725,2]
[382536972,1756659276902,480.0,0.0001725,2]
[382536973,1756659278516,661.02,0.0001725,2]
[382536974,1756659278778,249.71944089,0.0001725,2]
[382536975,1756659281979,9089.27055911,0.0001725,2]
[382536976,1756659282004,10000.01,0.0001725,2]
[382536977,1756659282029,7146.28918889,0.0001725,2]
[382536978,1756659282323,771.11,0.0001725,2]
[382536979,1756659283079,2082.61081111,0.0001725,2]
[382536980,1756659283101,2917.38918889,0.0001725,2]
[382536981,1756659284078,1656.48,0.0001725,2]
[382536982,1756659285972,900.46,0.0001725,2]
[382536983,1756659288848,885.49,0.0001725,2]
[382536984,1756659290892,1018.58,0.0001725,2]
[382536985,1756659290983,480.0,0.0001725,2]
[382536986,1756659291050,480.0,0.0001725,2]
[382536987,1756659291915,5000.0,0.0001725,2]
[382536988,1756659292045,480.0,0.0001725,2]
[382536989,1756659292595,480.0,0.0001725,2]
[382536990,1756659297472,1189.24,0.0001725,2]
[382536991,1756659299872,872.19,0.0001725,2]
[382536992,1756659299894,4127.81,0.0001725,2]
[382536993,1756659300334,706.37,0.0001725,2]
[382536994,1756659302361,300.0,0.0001725,2]
[382536995,1756659302408,1200.0,0.0001725,2]
[382536996,1756659305092,1208.6,0.0001725,2]
[382536997,1756659305286,480.0,0.0001725,2]
[382536998,1756659307690,884.13,0.0001725,2]
[382536999,1756659307962,480.0,0.0001725,2]
[382537000,1756659308326,613.1,0.0001725,2]
[382537001,1756659308350,2006.06785404,0.0001725,2]
[382537002,1756659308424,480.0,0.0001725,2]
[382537003,1756659309079,480.0,0.0001725,2]
[382537004,1756659309362,981.66,0.0001725,2]
[382537005,1756659315104,945.74,0.0001725,2]
[382537006,1756659315143,480.0,0.0001725,2]
[382537007,1756659315213,480.0,0.0001725,2]
[382537008,1756659316132,480.0,0.0001725,2]
[382537009,1756659316518,3666.54214596,0.0001725,2]
[382537010,1756659316545,1333.45785404,0.0001725,2]
[382537011,1756659319663,480.0,0.0001725,2]
[382537012,1756659320819,480.0,0.0001725,2]
[382537013,1756659320913,1291.52,0.0001725,2]
[382537014,1756659321351,533.86,0.0001725,2]
[382537015,1756659323473,480.0,0.0001725,2]
[382537016,1756659324474,5000.0,0.0001725,2]
[382537017,1756659328865,401.17214596,0.0001725,2]
[382537018,1756659328890,101.64785404,0.0001725,2]
[382537019,1756659329505,782.78,0.0001725,2]
[382537020,1756659329930,553.92,0.0001725,2]
[382537021,1756659331514,487.9,0.0001725,2]
[382537022,1756659333316,599.8,0.0001725,2]
[382537023,1756659335346,167.40560725,0.00017151,2]
[382537024,1756659336661,989.08,0.0001725,2]
[382537025,1756659337413,480.0,0.0001725,2]
[382537026,1756659337920,640.27,0.0001725,2]
[382537027,1756659338394,552.49,0.0001725,2]
[382537028,1756659340391,1068.68,0.0001725,2]
[382537029,1756659340878,3576.03653871,0.0001725,2]
[382537030,1756659340903,1423.96346129,0.0001725,2]
[382537031,1756659341876,1059.27,0.0001725,2]
[382537032,1756659341975,480.0,0.0001725,2]
[382537033,1756659346914,2214.48,0.0001725,2]
[382537034,1756659347471,809.17,0.0001725,2]
[382537046,1756659348668,5000.0,0.0001725,2]
[382537078,1756659351359,871.15,0.0001725,2]
[382537079,1756659352019,921.21,0.0001725,2]
[382537080,1756659360159,4635.2,0.0001725,2]
[382537081,1756659360321,455.96158309,0.0001725,2]
[382537082,1756659360355,521.9,0.0001725,2]
[382537083,1756659361395,1038.12,0.0001725,2]
[382537084,1756659363867,300.0,0.0001725,2]
[382537085,1756659364353,3048.82841691,0.0001725,2]
[382537086,1756659364377,1951.17158309,0.0001725,2]
[382537087,1756659366137,3384.6877574,0.00016381,2]
[382537088,1756659366295,4643.54,0.0001725,2]
[382537089,1756659366453,20.61065951,0.0001725,2]
[382537090,1756659366477,1145.35934049,0.0001725,2]
[382537091,1756659366590,787.45,0.0001725,2]
[382537092,1756659367144,480.0,0.0001725,2]
[382537093,1756659367322,769.64,0.0001725,2]
[382537094,1756659368361,6817.56065951,0.00016337,2]
[382537095,1756659368594,10000.01,0.00016337,2]
[382537096,1756659368618,3222.84010479,0.00016337,2]
[382537097,1756659369740,480.0,0.0001725,2]
[382537098,1756659372293,5000.0,0.0001725,2]
[382537099,1756659379317,480.0,0.0001725,2]
[382537100,1756659379411,480.0,0.0001725,2]
[382537101,1756659381430,337.16989521,0.0001725,2]
[382537102,1756659381452,4662.83010479,0.0001725,2]
[382537103,1756659381792,1022.35,0.0001725,2]
[382537104,1756659383503,480.0,0.0001725,2]
[382537105,1756659385007,882.74,0.0001725,2]
[382537106,1756659388417,1000.0,0.0001725,2]
[382537107,1756659389085,691.08,0.0001725,2]
[382537108,1756659389355,1261.00989521,0.0001725,2]
[382537109,1756659389379,3738.99010479,0.0001725,2]
[382537110,1756659389715,2207.87,0.0001725,2]
[382537111,1756659389750,1000.0,0.0001725,2]
[382537112,1756659390898,1000.0,0.0001725,2]
[382537113,1756659391176,480.0,0.0001725,2]
[382537114,1756659392017,1000.0,0.0001725,2]
[382537115,1756659392740,480.0,0.0001725,2]
[382537116,1756659393064,93.14989521,0.0001725,2]
[382537117,1756659393090,906.85010479,0.0001725,2]
[382537118,1756659394199,1000.0,0.0001725,2]
[382537119,1756659395405,1000.0,0.0001725,2]
[382537120,1756659396406,1000.0,0.0001725,2]
[382537121,1756659397305,480.0,0.0001725,2]
[382537122,1756659397440,5000.0,0.0001725,2]
[382537123,1756659397508,613.15989521,0.0001725,2]
[382537124,1756659397530,386.84010479,0.0001725,2]
[382537125,1756659398215,749.2341924,0.00016378,2]
[382537126,1756659398557,1370.4204351,0.00016378,2]
[382537127,1756659398637,1121.84785891,0.0001725,2]
[382537128,1756659399423,480.0,0.0001725,2]
[382537129,1756659401136,314.23768306,0.0001725,2]
[382537130,1756659403155,859.23,0.0001725,2]
[382537131,1756659403896,480.0,0.0001725,2]
[382537132,1756659404970,1178.12,0.0001725,2]
[382537133,1756659406914,480.0,0.0001725,2]
[382537134,1756659411182,480.0,0.0001725,2]
[382537135,1756659412123,480.0,0.0001725,2]
[382537136,1756659412744,1620.07972574,0.0001725,2]
[382537137,1756659412768,3379.92027426,0.0001725,2]